bitfinex-derivatives/quotes_BTCF0:USTF0_20250505
["timestamp","ask_amount","ask_price","bid_price","bid_amount"]
[1746454861920,0.2122469,94244.0,94237.0,0.1644]
[1746454862226,0.2122626,94237.0,94234.0,0.284189]
[1746454862419,0.2122626,94237.0,94236.0,0.5730649]
[1746454862620,0.2122874,94226.0,94222.0,0.00159198]
[1746454862919,0.2122942,94223.0,94222.0,0.00159198]
[1746454863321,0.5710942,94223.0,94222.0,0.00159198]
[1746454863521,0.2102942,94223.0,94222.0,0.00159198]
[1746454863724,0.2082942,94223.0,94222.0,0.00159198]
[1746454865720,0.2112942,94223.0,94222.0,0.00159198]
[1746454865925,0.2062942,94223.0,94222.0,0.00159198]
[1746454866225,0.003,94223.0,94222.0,0.57468838]
[1746454866621,0.2122927,94224.0,94223.0,0.2122942]
[1746454866819,0.1601,94230.0,94222.0,0.41546558]
[1746454867017,0.3723827,94230.0,94229.0,0.2122807]
[1746454867223,0.1601,94230.0,94229.0,0.2122807]
[1746454867525,0.2122735,94233.0,94232.0,0.2122739]
[1746454867825,0.3673694,94234.0,94228.0,0.3124]
[1746454868025,0.0530694,94231.0,94228.0,0.3124]
[1746454868227,0.2122807,94229.0,94228.0,0.3124]
[1746454868531,0.2122942,94223.0,94222.0,0.36339198]
[1746454868727,0.2122942,94223.0,94222.0,0.00159198]
[1746454869722,0.2132942,94223.0,94222.0,0.00159198]
[1746454869925,0.3731942,94223.0,94222.0,0.00159198]
[1746454870424,0.3761942,94223.0,94222.0,0.00159198]
[1746454870930,0.3781942,94223.0,94222.0,0.00159198]
[1746454872231,0.3771942,94223.0,94222.0,0.00159198]
[1746454872726,0.3751942,94223.0,94222.0,0.00159198]
[1746454873025,0.005,94223.0,94222.0,0.21388838]
[1746454873226,0.004,94223.0,94222.0,0.69468838]
[1746454873822,0.004,94223.0,94222.0,1.00268838]
[1746454874631,0.002,94223.0,94222.0,1.00468838]
[1746454875126,0.2122929,94224.0,94222.0,0.79239198]
[1746454875427,0.2122942,94223.0,94222.0,0.79239198]
[1746454875627,0.2123077,94217.0,94213.0,0.3608]
[1746454875827,0.2123077,94217.0,94206.0,0.1618]
[1746454876021,0.2123302,94207.0,94206.0,0.1618]
[1746454876223,0.2123325,94206.0,94195.0,0.01649951]
[1746454876422,0.5271325,94206.0,94190.0,0.16339286]
[1746454876619,0.6332845,94206.0,94190.0,0.16339286]
[1746454876830,0.6332845,94206.0,94191.0,0.2123649]
[1746454877029,0.6332845,94206.0,94192.0,0.212363]
[1746454877231,0.7522845,94206.0,94193.0,0.1573]
[1746454877531,0.7522845,94206.0,94194.0,0.1618]
[1746454878331,1.1130845,94206.0,94194.0,0.1618]
[1746454879638,1.1130845,94206.0,94194.0,0.3741582]
[1746454879828,1.1150845,94206.0,94194.0,0.1618]
[1746454882040,1.0089325,94206.0,94194.0,0.1618]
[1746454882224,0.6481325,94206.0,94194.0,0.1618]
[1746454882429,0.4929325,94206.0,94205.0,0.36186151]
[1746454883131,0.3729325,94206.0,94205.0,0.36186151]
[1746454883438,0.3759325,94206.0,94205.0,0.36186151]
[1746454884140,0.3739325,94206.0,94205.0,0.36186151]
[1746454884336,0.3769325,94206.0,94205.0,0.36186151]
[1746454885737,0.631552,94206.0,94190.0,0.00159286]
[1746454885940,0.631552,94206.0,94175.0,0.00106185]
[1746454885941,0.2124001,94176.0,94175.0,0.00106185]
[1746454886139,0.5732001,94176.0,94175.0,0.00106185]
[1746454886444,0.5732001,94176.0,94168.0,4e-08]
[1746454886445,0.466984,94176.0,94168.0,4e-08]
[1746454886641,0.2124498,94154.0,94153.0,0.1501]
[1746454886939,0.212452,94153.0,94145.0,0.0026558]
[1746454887135,0.2124678,94146.0,94145.0,0.0026558]
[1746454887337,0.5732678,94146.0,94145.0,0.0026558]
[1746454887532,0.2125152,94125.0,94124.0,0.3608]
[1746454887745,0.212522,94122.0,94118.0,0.1611]
[1746454888046,0.0531284,94126.0,94124.0,0.2125169]
[1746454888238,0.3159,94127.0,94122.0,0.0531305]
[1746454888435,0.0718,94141.0,94126.0,0.3608]
[1746454888642,0.2125034,94131.0,94130.0,0.2125039]
[1746454888943,0.0531258,94131.0,94126.0,0.3608]
[1746454889244,0.2125084,94128.0,94127.0,0.3757107]
[1746454889844,0.2075084,94128.0,94127.0,0.3757107]
[1746454890051,0.2125051,94130.0,94129.0,0.2125032]
[1746454890435,0.2125084,94128.0,94127.0,0.1632]
[1746454890943,0.2125084,94128.0,94127.0,0.1642]
[1746454891137,0.2125038,94131.0,94130.0,0.2125027]
[1746454891339,0.2125038,94131.0,94127.0,0.2842]
[1746454891340,0.0531176,94145.0,94127.0,0.2842]
[1746454891545,0.2124686,94146.0,94143.0,0.2124746]
[1746454891745,0.2124814,94140.0,94139.0,0.1611]
[1746454893035,0.2124926,94135.0,94134.0,0.3608]
[1746454893236,0.0531237,94134.0,94127.0,0.002]
[1746454893539,0.2125084,94128.0,94127.0,0.002]
[1746454894150,0.3325084,94128.0,94127.0,0.002]
[1746454894536,0.2125288,94119.0,94118.0,0.1611]
[1746454894741,0.212531,94118.0,94117.0,0.00159375]
[1746454894937,0.373831,94118.0,94117.0,0.00159375]
[1746454895151,0.493831,94118.0,94117.0,0.00159375]
[1746454896151,0.531931,94118.0,94117.0,0.00159375]
[1746454897549,0.531931,94118.0,94117.0,0.16639375]
[1746454897750,0.531931,94118.0,94117.0,0.16939375]
[1746454898549,0.212531,94118.0,94117.0,0.16639375]
[1746454898748,0.214531,94118.0,94117.0,0.16639375]
[1746454898946,0.217531,94118.0,94117.0,0.16639375]
[1746454899149,0.217531,94118.0,94117.0,0.37892705]
[1746454899150,0.003,94118.0,94117.0,0.37892705]
[1746454899449,0.006,94118.0,94117.0,0.37892705]
[1746454900452,0.0531112,94157.0,94117.0,0.37892705]
[1746454900453,0.0531229,94136.0,94127.0,0.0531276]
[1746454900646,0.07184,94140.0,94117.0,0.16639375]
[1746454900647,0.0531149,94150.0,94130.0,0.3608]
[1746454900846,0.07184,94153.0,94141.0,0.3608]
[1746454900847,0.2124768,94142.0,94141.0,0.3608]
[1746454901249,0.2124768,94142.0,94141.0,0.5732791]
[1746454901449,0.21406786,94144.0,94143.0,0.2124746]
[1746454901645,0.2124768,94142.0,94141.0,0.3608]
[1746454901846,0.00159416,94144.0,94143.0,0.2124746]
[1746454902050,0.0015,94170.0,94150.0,0.0531142]
[1746454902247,0.3690049,94168.0,94163.0,0.3608]
[1746454902451,0.3159,94168.0,94164.0,0.1506]
[1746454902751,0.2124249,94165.0,94164.0,0.1506]
[1746454904746,0.2134249,94165.0,94164.0,0.1506]
[1746454905256,0.107196,94165.0,94133.0,0.3608]
[1746454905445,0.2124656,94147.0,94146.0,0.0718]
[1746454905643,0.2124723,94144.0,94143.0,0.1538]
[1746454906253,0.2124746,94143.0,94133.0,0.3608]
[1746454906453,0.5358746,94143.0,94133.0,0.3608]
[1746454906750,0.5348746,94143.0,94133.0,0.3608]
[1746454907158,0.6548746,94143.0,94133.0,0.3608]
[1746454907861,0.6548746,94143.0,94142.0,0.00459367]
[1746454908758,0.6548746,94143.0,94142.0,0.00659367]
[1746454909061,0.6588746,94143.0,94142.0,0.00359367]
[1746454909955,0.6588746,94143.0,94142.0,0.00159367]
[1746454910156,0.6648746,94143.0,94142.0,0.00159367]
[1746454913760,0.3414746,94143.0,94142.0,0.00159367]
[1746454914265,0.2214746,94143.0,94142.0,0.00159367]
[1746454914465,0.5374746,94143.0,94142.0,0.00159367]
[1746454915366,0.01,94143.0,94142.0,0.21407047]
[1746454915760,0.006,94143.0,94142.0,0.21407047]
[1746454915960,0.01,94143.0,94142.0,0.36577047]
[1746454916162,0.01,94143.0,94142.0,0.48577047]
[1746454916665,0.0531076,94163.0,94156.0,0.0531109]
[1746454916864,0.2124407,94158.0,94157.0,0.6627]
[1746454917264,0.2124407,94158.0,94157.0,0.875143]
[1746454917666,0.1607,94169.0,94157.0,0.6627]
[1746454917865,0.212427,94165.0,94164.0,0.212424]
[1746454918063,0.0015,94170.0,94163.0,0.3127]
[1746454918269,0.0015,94170.0,94169.0,0.2124159]
[1746454918461,0.0015,94170.0,94169.0,0.2280745]
[1746454919176,0.0015,94170.0,94169.0,0.3480745]
[1746454919563,0.2139137,94170.0,94169.0,0.12]
[1746454920068,0.2139137,94170.0,94169.0,0.121]
[1746454920266,0.2139137,94170.0,94169.0,0.324]
[1746454920576,0.2139137,94170.0,94169.0,0.1615]
[1746454920967,0.5231137,94170.0,94169.0,0.1615]
[1746454921162,0.5231137,94170.0,94169.0,0.001]
[1746454922472,0.2124182,94168.0,94167.0,0.1616]
[1746454923267,0.2124182,94168.0,94165.0,0.3608]
[1746454923268,0.2124227,94166.0,94165.0,0.3608]
[1746454923467,0.2124227,94166.0,94146.0,0.3608]
[1746454923468,0.0531086,94161.0,94154.0,0.1604]
[1746454923776,0.2124746,94143.0,94126.0,0.3608]
[1746454923970,0.5732746,94143.0,94135.0,0.1604]
[1746454924165,0.6932746,94143.0,94135.0,0.1604]
[1746454924683,1.0137746,94143.0,94136.0,0.1656]
[1746454924973,0.6529746,94143.0,94136.0,0.3780893]
[1746454925177,0.5329746,94143.0,94136.0,0.3780893]
[1746454925679,0.5329746,94143.0,94142.0,0.00459367]
[1746454925876,0.2124746,94143.0,94142.0,0.00459367]
[1746454926572,0.2154746,94143.0,94142.0,0.00159367]
[1746454927271,0.3678746,94143.0,94142.0,0.00159367]
[1746454927576,0.212531,94118.0,94116.0,0.3608]
[1746454927777,0.212531,94118.0,94117.0,0.15619375]
[1746454927977,0.212531,94118.0,94117.0,0.00159375]
[1746454928883,0.0531318,94120.0,94117.0,0.00359375]
[1746454929070,0.2125288,94119.0,94118.0,0.3065]
[1746454929775,0.2125288,94119.0,94118.0,0.519031]
[1746454930167,0.2125288,94119.0,94118.0,0.4275]
[1746454930373,0.2125288,94119.0,94118.0,0.2729]
[1746454930682,0.2125288,94119.0,94118.0,0.121]
[1746454931077,0.5325288,94119.0,94118.0,0.121]
[1746454931278,0.6525288,94119.0,94118.0,0.001]
[1746454932183,0.6525288,94119.0,94082.0,0.36239435]
[1746454932184,0.0531361,94112.0,94082.0,0.36239435]
[1746454932387,0.2125694,94101.0,94094.0,0.1506]
[1746454932988,0.2125694,94101.0,94095.0,0.1568]
[1746454933182,0.2126033,94086.0,94082.0,0.36239435]
[1746454933488,0.2106033,94086.0,94083.0,0.1568]
[1746454934584,0.2106033,94086.0,94082.0,0.36239435]
[1746454934585,0.7321033,94086.0,94084.0,0.1651]
[1746454934777,0.7321033,94086.0,94082.0,0.00159435]
[1746454935179,0.8521033,94086.0,94082.0,0.00159435]
[1746454935381,0.9573896,94086.0,94082.0,0.00159435]
[1746454935582,0.9563896,94086.0,94082.0,0.00159435]
[1746454935778,0.2126101,94083.0,94082.0,0.00159435]
[1746454935979,0.2086101,94083.0,94082.0,0.00159435]
[1746454936181,0.12,94083.0,94073.0,0.1568]
[1746454936378,0.2126304,94074.0,94073.0,0.1568]
[1746454936580,0.2086304,94074.0,94073.0,0.1568]
[1746454936981,0.2046304,94074.0,94073.0,0.1568]
[1746454937289,0.5186304,94074.0,94073.0,0.1568]
[1746454937491,0.5186304,94074.0,94073.0,0.1638]
[1746454939093,0.5186304,94074.0,94073.0,0.1578]
[1746454939884,0.5186304,94074.0,94073.0,0.001]
[1746454940292,0.5186304,94074.0,94073.0,1e-07]
[1746454940495,1.09203026,94074.0,94073.0,1e-07]
[1746454940795,1.16375026,94074.0,94073.0,1e-07]
[1746454941089,1.16375026,94074.0,94055.0,0.0010632]
[1746454941090,0.2126499,94056.0,94055.0,0.0010632]
[1746454942585,0.2126499,94056.0,94055.0,0.0040632]
[1746454943092,0.2126499,94056.0,94055.0,0.0080632]
[1746454944598,0.2136499,94056.0,94055.0,0.0040632]
[1746454946589,0.2126679,94048.0,94036.0,0.159]
[1746454947491,0.5214679,94048.0,94036.0,0.159]
[1746454947892,0.5224679,94048.0,94036.0,0.159]
[1746454948090,0.5224679,94048.0,94035.0,0.3608]
[1746454948091,0.6287959,94048.0,94035.0,0.3608]
[1746454948297,0.2126951,94036.0,94035.0,0.3608]
[1746454948499,0.0531722,94039.0,94030.0,0.1595]
[1746454948500,0.2127064,94031.0,94030.0,0.1595]
[1746454948698,0.2127177,94026.0,94025.0,0.00106354]
[1746454949901,0.2117177,94026.0,94025.0,0.00106354]
[1746454950402,0.2833577,94026.0,94025.0,0.00206354]
[1746454950697,0.2833577,94026.0,94013.0,0.00159582]
[1746454950698,0.2087449,94014.0,94013.0,0.00159582]
[1746454951102,0.2087449,94014.0,94013.0,0.15609582]
[1746454951304,0.5218449,94014.0,94013.0,0.15609582]
[1746454951501,0.52968558,94014.0,94013.0,0.00159582]
[1746454952304,0.0531919,94004.0,94000.0,0.105]
[1746454952605,0.2127743,94001.0,94000.0,0.105]
[1746454952806,0.2117743,94001.0,94000.0,0.105]
[1746454953798,0.2127856,93996.0,93995.0,8e-08]
[1746454954305,0.5108536,93996.0,93995.0,8e-08]
[1746454954507,0.61724167,93996.0,93995.0,8e-08]
[1746454954802,0.93714167,93996.0,93995.0,8e-08]
[1746454955113,0.93714167,93996.0,93980.0,0.1553]
[1746454955114,0.2128196,93981.0,93980.0,0.1553]
[1746454955295,0.2128264,93978.0,93967.0,0.156]
[1746454955495,0.0532094,93973.0,93952.0,0.00922446]
[1746454955702,0.2128626,93962.0,93961.0,0.1583]
[1746454956102,0.2128626,93962.0,93961.0,0.0483]
[1746454956499,0.5327626,93962.0,93961.0,0.0483]
[1746454956694,0.5327626,93962.0,93961.0,0.2043]
[1746454957102,0.5327626,93962.0,93961.0,0.2053]
[1746454959102,0.5406601,93962.0,93961.0,0.2053]
[1746454960010,0.5406601,93962.0,93961.0,0.2043]
[1746454960307,0.5436601,93962.0,93961.0,0.2043]
[1746454960503,0.3820601,93962.0,93961.0,0.2043]
[1746454960901,0.2237601,93962.0,93961.0,0.2063]
[1746454961106,0.2237601,93962.0,93961.0,0.3263]
[1746454961802,0.2237601,93962.0,93961.0,0.3243]
[1746454962105,0.2257601,93962.0,93961.0,0.2043]
[1746454963208,0.2257601,93962.0,93961.0,0.3243]
[1746454964102,0.2257601,93962.0,93961.0,0.2043]
[1746454964502,0.5313601,93962.0,93961.0,0.2043]
[1746454965013,0.5313601,93962.0,93961.0,0.0483]
[1746454965302,0.6030801,93962.0,93961.0,0.2036]
[1746454965708,0.6030801,93962.0,93942.0,0.01105648]
[1746454965709,0.2128649,93961.0,93960.0,1e-07]
[1746454965899,0.2129034,93944.0,93943.0,0.3079]
[1746454966104,0.6454234,93944.0,93943.0,0.3079]
[1746454966806,0.2846234,93944.0,93943.0,0.3079]
[1746454967115,0.2846234,93944.0,93943.0,0.4279]
[1746454967410,0.2866234,93944.0,93943.0,0.4279]
[1746454967601,0.2149034,93944.0,93943.0,0.4279]
[1746454968009,0.2169034,93944.0,93943.0,0.4279]
[1746454968609,0.2199034,93944.0,93943.0,0.4279]
[1746454970102,0.2169034,93944.0,93943.0,0.4279]
[1746454970499,0.2139034,93944.0,93943.0,1.0016056]
[1746454970706,0.2149034,93944.0,93943.0,1.0016056]
[1746454970912,0.2169034,93944.0,93943.0,0.7887]
[1746454974013,0.2169034,93944.0,93943.0,1.1080536]
[1746454974606,0.004,93944.0,93943.0,1.1080536]
[1746454974803,0.2128836,93955.0,93954.0,0.212879]
[1746454974998,0.2128836,93955.0,93954.0,0.3608]
[1746454975205,0.2128836,93955.0,93954.0,0.4808]
[1746454976113,0.2178836,93955.0,93954.0,0.4808]
[1746454976713,0.2178785,93955.0,93954.0,0.6936807]
[1746454976908,0.2178785,93955.0,93954.0,0.4808]
[1746454977308,0.2218785,93955.0,93954.0,0.4808]
[1746454977803,0.2168785,93955.0,93954.0,0.4818]
[1746454978000,0.2118785,93955.0,93954.0,0.4818]
[1746454978509,0.2118785,93955.0,93954.0,0.6936807]
[1746454978711,0.2128785,93955.0,93954.0,0.6936807]
[1746454978912,0.05481297,93963.0,93961.0,0.2128626]
[1746454979115,0.26767327,93963.0,93962.0,0.3058]
[1746454979612,0.21445787,93963.0,93962.0,0.8794626]
[1746454980113,0.21445787,93963.0,93962.0,0.7866]
[1746454980917,0.21445787,93963.0,93962.0,1.0004626]
[1746454981417,0.21545787,93963.0,93962.0,1.0004626]
[1746454981612,0.00259757,93963.0,93962.0,1.0004626]
[1746454981811,0.00259757,93963.0,93962.0,0.9994626]
[1746454982013,0.1524,93981.0,93962.0,0.9994626]
[1746454982014,0.2128273,93981.0,93980.0,0.2128128]
[1746454982315,0.2128354,93975.0,93974.0,0.2128339]
[1746454982518,0.2128354,93975.0,93974.0,1.0340339]
[1746454982815,0.2128354,93975.0,93974.0,1.14044589]
[1746454983216,0.2128354,93975.0,93974.0,1.26044589]
[1746454984013,0.2128354,93975.0,93974.0,1.1540339]
[1746454984616,0.2128354,93975.0,93974.0,0.9412]
[1746454985122,0.2128354,93975.0,93974.0,0.4294]
[1746454985705,0.5286354,93975.0,93974.0,0.4294]
[1746454986212,0.5286354,93975.0,93974.0,0.12]
[1746454986612,0.5296354,93975.0,93974.0,0.12]
[1746454987014,0.63704724,93975.0,93974.0,0.12]
[1746454987213,0.2128581,93964.0,93963.0,0.00026722]
[1746454987810,0.2128581,93964.0,93963.0,0.32846722]
[1746454988212,0.2128581,93964.0,93963.0,0.66132752]
[1746454988411,0.2128439,93971.0,93970.0,0.2128398]
[1746454988611,0.2128422,93971.0,93970.0,0.5736398]
[1746454988806,0.007,93975.0,93974.0,0.2128354]
[1746454989012,0.007,93975.0,93973.0,0.1634]
[1746454989217,0.01,93975.0,93974.0,0.3328354]
[1746454989709,0.01,93975.0,93974.0,0.65610769]
[1746454989913,0.004,93975.0,93974.0,0.76251968]
[1746454990422,0.2660302,93979.0,93978.0,0.2660278]
[1746454990720,0.2660302,93979.0,93978.0,0.6268278]
[1746454990921,0.2660302,93979.0,93978.0,0.5736218]
[1746454991121,0.2660302,93979.0,93978.0,0.6936218]
[1746454991421,0.2660302,93979.0,93978.0,0.4808]
[1746454991614,0.2128179,93985.0,93984.0,0.2128105]
[1746454991920,0.2128241,93980.0,93979.0,0.2660198]
[1746454992120,0.2128241,93980.0,93979.0,0.3328142]
[1746454992317,0.0532026,93986.0,93983.0,0.0532032]
[1746454992521,0.2660266,93982.0,93981.0,0.2128195]
[1746454992912,0.2128144,93984.0,93983.0,0.2660137]
[1746454993223,0.001,93980.0,93979.0,0.2128241]
[1746454993725,0.001,93980.0,93979.0,0.31923209]
[1746454993916,0.2128201,93981.0,93980.0,0.2128218]
[1746454994115,0.2128241,93979.0,93978.0,0.5736254]
[1746454994315,0.2138241,93979.0,93978.0,0.3608]
[1746454995120,0.2128241,93979.0,93978.0,0.5736264]
[1746454995323,0.2128241,93979.0,93978.0,0.6936264]
[1746454995708,0.2128241,93979.0,93978.0,0.4808]
[1746454996718,0.3777241,93979.0,93978.0,0.4808]
[1746454997023,0.5351241,93979.0,93978.0,0.12]
[1746454997522,0.5361241,93979.0,93978.0,0.12]
[1746455000212,0.2128354,93974.0,93973.0,0.12]
[1746455001327,0.2148354,93974.0,93973.0,0.12]
[1746455002120,0.2158354,93974.0,93973.0,0.12]
[1746455003919,0.5287354,93974.0,93973.0,0.12]
[1746455004123,0.2128581,93964.0,93959.0,0.00925841]
[1746455005123,0.5257581,93964.0,93963.0,0.12026722]
[1746455005726,0.5257581,93964.0,93963.0,0.12226722]
[1746455006122,0.5257581,93964.0,93963.0,0.00226722]
[1746455006729,0.5257581,93964.0,93963.0,0.00126722]
[1746455007227,0.5257581,93964.0,93963.0,0.00026722]
[1746455007621,0.5277581,93964.0,93963.0,0.00026722]
[1746455008431,0.5307581,93964.0,93963.0,0.00026722]
[1746455014827,0.5307581,93964.0,93963.0,2e-08]
[1746455016434,0.2128785,93955.0,93954.0,9e-08]
[1746455016633,0.5736785,93955.0,93954.0,9e-08]
[1746455017836,0.5756785,93955.0,93954.0,9e-08]
[1746455019942,0.5766785,93955.0,93954.0,9e-08]
[1746455020441,0.5756785,93955.0,93954.0,9e-08]
[1746455020640,0.5776785,93955.0,93954.0,9e-08]
[1746455028550,0.2168785,93955.0,93954.0,0.21288079]
[1746455029154,0.2168785,93955.0,93954.0,0.80708079]
[1746455029450,0.2168785,93955.0,93954.0,0.59420009]
[1746455030849,0.2158785,93955.0,93954.0,0.59420009]
[1746455031050,0.2138785,93955.0,93954.0,0.59420009]
[1746455031652,0.2138785,93955.0,93954.0,0.80708079]
[1746455031855,0.2158785,93955.0,93954.0,0.80708079]
[1746455032255,0.23819572,93955.0,93954.0,0.80708079]
[1746455032557,0.02431722,93955.0,93954.0,0.91351679]
[1746455033149,0.23719572,93955.0,93954.0,0.91351679]
[1746455033846,0.02431722,93955.0,93954.0,0.91351679]
[1746455034042,0.02331722,93955.0,93954.0,0.91351679]
[1746455034752,0.02231722,93955.0,93954.0,0.91351679]
[1746455034947,0.02331722,93955.0,93954.0,0.91351679]
[1746455035351,0.23619572,93955.0,93954.0,0.91351679]
[1746455035551,0.02331722,93955.0,93954.0,0.91351679]
[1746455038050,0.23619572,93955.0,93954.0,0.70063609]
[1746455038245,0.23619572,93955.0,93954.0,0.80708079]
[1746455038646,0.23519572,93955.0,93954.0,0.80708079]
[1746455039659,0.23519572,93955.0,93954.0,0.59420009]
[1746455039859,0.23519572,93955.0,93954.0,0.80708079]
[1746455040858,0.23519572,93955.0,93954.0,0.59420009]
[1746455041366,0.23519572,93955.0,93954.0,0.80708079]
[1746455041668,0.2129056,93943.0,93940.0,0.00954281]
[1746455041852,0.212985,93908.0,93907.0,0.16719732]
[1746455042167,0.212985,93908.0,93907.0,0.17681007]
[1746455042361,0.23530222,93908.0,93907.0,0.17681007]
[1746455042858,0.23230222,93908.0,93907.0,0.17681007]
[1746455043061,0.23230222,93908.0,93907.0,0.16719732]
[1746455043263,0.59310222,93908.0,93907.0,0.12159732]
[1746455043559,0.59010222,93908.0,93907.0,0.12159732]
[1746455043761,0.2129895,93906.0,93905.0,4e-08]
[1746455044163,0.2130009,93901.0,93900.0,4e-08]
[1746455044366,0.2130213,93892.0,93891.0,0.03377439]
[1746455044559,0.6371813,93892.0,93891.0,0.03377439]
[1746455044868,0.6371813,93892.0,93891.0,9e-08]
[1746455045268,1.054477,93892.0,93891.0,9e-08]
[1746455045566,1.06679422,93892.0,93891.0,9e-08]
[1746455045966,1.06779422,93892.0,93891.0,0.01000009]
[1746455046175,1.06779422,93892.0,93891.0,0.01]
[1746455046575,0.73873852,93892.0,93891.0,0.01]
[1746455047164,0.73873852,93892.0,93891.0,0.13]
[1746455047571,0.73973852,93892.0,93891.0,0.136]
[1746455047972,0.57313852,93892.0,93891.0,0.3490236]
[1746455048167,0.02431722,93892.0,93891.0,0.3490236]
[1746455048366,0.02431722,93892.0,93891.0,0.4555276]
[1746455048767,0.3608,93901.0,93900.0,0.2130031]
[1746455049174,0.3608,93901.0,93900.0,0.5108991]
[1746455049572,0.16138579,93904.0,93901.0,0.2129978]
[1746455049772,0.2130001,93902.0,93901.0,0.2129978]
[1746455049973,0.2130001,93902.0,93901.0,0.3793978]
[1746455050175,0.37438089,93904.0,93903.0,0.2129963]
[1746455051175,0.37438089,93904.0,93903.0,0.3329963]
[1746455051369,0.37438089,93904.0,93903.0,0.12]
[1746455051577,0.37538089,93904.0,93903.0,0.12]
[1746455051776,0.2139951,93904.0,93903.0,0.12]
[1746455051977,0.2149951,93904.0,93903.0,0.12]
[1746455052177,0.2149951,93904.0,93903.0,0.3329963]
[1746455052577,0.2149951,93904.0,93903.0,0.3389963]
[1746455052880,0.2149951,93904.0,93903.0,0.126]
[1746455055385,0.213044,93882.0,93881.0,0.1536]
[1746455055776,0.053261,93882.0,93878.0,0.00970647]
[1746455055984,0.2130576,93876.0,93872.0,0.05486451]
[1746455056284,0.2663202,93879.0,93878.0,0.2130485]
[1746455056781,0.2130572,93879.0,93878.0,0.2130485]
[1746455056987,0.002,93882.0,93881.0,0.2130463]
[1746455057282,0.002,93882.0,93881.0,0.3330463]
[1746455058174,0.001,93882.0,93881.0,0.3330463]
[1746455059282,0.3608,93883.0,93882.0,0.213044]
[1746455059682,0.3608,93883.0,93882.0,0.365344]
[1746455060081,0.5738417,93883.0,93882.0,0.365344]
[1746455060286,0.5738417,93883.0,93882.0,0.485344]
[1746455060989,0.5748417,93883.0,93882.0,0.2733]
[1746455061294,0.5748417,93883.0,93882.0,0.486344]
[1746455061295,0.3618,93883.0,93882.0,0.486344]
[1746455061888,0.5748417,93883.0,93882.0,0.486344]
[1746455062889,0.5758417,93883.0,93882.0,0.486344]
[1746455064187,0.5758417,93883.0,93882.0,0.121]
[1746455066294,0.3628,93883.0,93882.0,0.334044]
[1746455066595,0.5758417,93883.0,93882.0,0.334044]
[1746455068001,0.5758417,93883.0,93882.0,0.34982191]
[1746455069602,0.3628,93883.0,93882.0,0.34982191]
[1746455069805,0.5758417,93883.0,93882.0,0.34982191]
[1746455069999,0.3628,93883.0,93882.0,0.34982191]
[1746455070204,0.002,93883.0,93882.0,0.34982191]
[1746455070705,0.002,93883.0,93882.0,0.45633791]
[1746455074100,0.3608,93887.0,93886.0,0.2130349]
[1746455074698,0.3608,93887.0,93886.0,0.22881281]
[1746455075204,0.3608,93887.0,93886.0,0.34881281]
[1746455075706,0.3618,93887.0,93886.0,0.34881281]
[1746455076009,0.5748326,93887.0,93886.0,0.13577791]
[1746455076506,0.5758326,93887.0,93886.0,0.13677791]
[1746455076904,0.7380326,93887.0,93886.0,0.13677791]
[1746455079210,0.7380326,93887.0,93886.0,0.01677791]
[1746455079703,0.89941839,93887.0,93886.0,0.01677791]
[1746455080093,0.89941839,93887.0,93886.0,0.13677791]
[1746455080698,0.89941839,93887.0,93886.0,0.34981281]
[1746455081403,0.89941839,93887.0,93886.0,0.13677791]
[1746455082210,0.89941839,93887.0,93886.0,0.34981281]
[1746455083109,0.7380326,93887.0,93886.0,0.34981281]
[1746455084304,0.7380326,93887.0,93886.0,0.51571281]
[1746455084505,0.3628,93887.0,93886.0,0.51571281]
[1746455085004,0.5758326,93887.0,93886.0,0.51571281]
[1746455085305,0.3628,93887.0,93886.0,0.51571281]
[1746455087414,0.5758326,93887.0,93886.0,0.51571281]
[1746455088013,0.5758326,93887.0,93886.0,0.13677791]
[1746455092817,0.73855769,93887.0,93886.0,0.13677791]
[1746455093320,0.73855769,93887.0,93886.0,0.34981281]
[1746455093520,0.73855769,93887.0,93886.0,0.13677791]
[1746455094913,0.73855769,93887.0,93886.0,0.34981281]
[1746455095216,0.52552509,93887.0,93886.0,0.34981281]
[1746455095608,0.5758326,93887.0,93886.0,0.34981281]
[1746455096721,0.3628,93887.0,93886.0,0.34981281]
[1746455097721,0.5758326,93887.0,93886.0,0.34981281]
[1746455104025,0.3628,93887.0,93886.0,0.34981281]
[1746455104223,0.002,93887.0,93886.0,0.34981281]
[1746455104521,0.16273625,93890.0,93889.0,0.2130281]
[1746455104922,0.2130137,93896.0,93895.0,0.2130099]
[1746455105119,0.2130137,93896.0,93895.0,0.6579099]
[1746455105520,0.45614381,93898.0,93897.0,0.2130099]
[1746455105720,0.40289141,93898.0,93897.0,0.2130099]
[1746455106029,0.21460799,93898.0,93897.0,0.22878781]
[1746455106214,0.21460799,93898.0,93897.0,0.34878781]
[1746455107126,0.00159839,93898.0,93897.0,0.34878781]
[1746455107520,0.00259839,93898.0,93897.0,0.34878781]
[1746455108429,0.00359839,93898.0,93897.0,0.35078781]
[1746455114635,0.18828342,93906.0,93905.0,0.2129918]
[1746455115136,0.40127292,93906.0,93905.0,0.13577791]
[1746455115335,0.40127292,93906.0,93905.0,0.34876971]
[1746455115529,0.40127292,93906.0,93905.0,0.6503918]
[1746455115829,0.3608,93921.0,93913.0,0.2129737]
[1746455116018,0.22274413,93924.0,93913.0,0.53839999]
[1746455116223,0.25814188,93928.0,93927.0,0.2129419]
[1746455116424,0.09312629,93928.0,93927.0,0.2840619]
[1746455116637,0.09312629,93928.0,93927.0,0.40633681]
[1746455116931,0.1547,93941.0,93935.0,0.2129238]
[1746455117130,0.3608,93943.0,93935.0,0.2129238]
[1746455117528,0.3608,93943.0,93935.0,0.5358238]
[1746455117826,0.0532173,93959.0,93945.0,0.2129011]
[1746455118028,0.3608,93968.0,93945.0,0.21878978]
[1746455118029,0.3075,93956.0,93945.0,0.21878978]
[1746455118229,0.0532204,93954.0,93945.0,0.33878978]
[1746455118436,0.3075,93956.0,93945.0,0.33878978]
[1746455118624,0.5203771,93956.0,93945.0,0.65668978]
[1746455118824,0.3075,93956.0,93945.0,0.65668978]
[1746455119425,0.3075,93956.0,93955.0,0.2128785]
[1746455119627,0.0532216,93952.0,93945.0,0.12588868]
[1746455119827,0.2128944,93948.0,93945.0,0.12588868]
[1746455120140,0.2128912,93950.0,93949.0,0.2128901]
[1746455120337,0.053219,93956.0,93952.0,0.2128846]
[1746455120533,0.212883,93953.0,93952.0,0.2128846]
[1746455120733,0.2128887,93951.0,93950.0,0.2128889]
[1746455121238,0.3623,93960.0,93950.0,0.12]
[1746455121536,0.2128875,93951.0,93950.0,0.12]